[Event "*** SCC Grand Prix: Titled Tuesday Blitz"]
[Site "Chess.com"]
[Date "2020.09.29"]
[Round "6"]
[White "Kumi29"]
[Black "Sven_Tica"]
[Result "0-1"]
[WhiteElo "2407"]
[BlackElo "2663"]
[TimeControl "180+1"]
[EndTime "11:04:04 PDT"]
[Termination "Sven_Tica won by resignation"]

1. d4 {[%clk 0:03:00.9]} 1... d5 {[%clk 0:02:59.7]} 2. Nf3 {[%clk 0:03:00]} 2...
e6 {[%clk 0:03:00.2]} 3. Bf4 {[%clk 0:02:59.4]} 3... Bd6 {[%clk 0:03:00.8]} 4.
Bg3 {[%clk 0:02:58.7]} 4... Qe7 {[%clk 0:03:01.4]} 5. e3 {[%clk 0:02:55.2]} 5...
Bxg3 {[%clk 0:03:01.2]} 6. hxg3 {[%clk 0:02:54.5]} 6... Qb4+ {[%clk 0:03:01.9]}
7. Nbd2 {[%clk 0:02:51.9]} 7... Qxb2 {[%clk 0:03:01.9]} 8. Bd3 {[%clk
0:02:49.5]} 8... Nf6 {[%clk 0:03:01.2]} 9. Rb1 {[%clk 0:02:38.9]} 9... Qa3
{[%clk 0:03:01.1]} 10. Ne5 {[%clk 0:02:35.6]} 10... Nbd7 {[%clk 0:03:00.1]} 11.
g4 {[%clk 0:02:34.5]} 11... Nxe5 {[%clk 0:02:55.3]} 12. dxe5 {[%clk 0:02:33.3]}
12... Nd7 {[%clk 0:02:55.9]} 13. f4 {[%clk 0:02:31]} 13... a6 {[%clk 0:02:45.6]}
14. e4 {[%clk 0:02:10.6]} 14... Nc5 {[%clk 0:02:30.1]} 15. exd5 {[%clk
0:02:10.1]} 15... Nxd3+ {[%clk 0:02:30.2]} 16. cxd3 {[%clk 0:02:10.4]} 16...
Qxd3 {[%clk 0:02:29.5]} 17. Qa4+ {[%clk 0:01:33.4]} 17... b5 {[%clk 0:02:19.6]}
18. Qb4 {[%clk 0:01:33.5]} 18... Qxd5 {[%clk 0:01:58.2]} 19. f5 {[%clk
0:00:34.3]} 19... Qxe5+ {[%clk 0:01:53.2]} 20. Kf2 {[%clk 0:00:31.9]} 20... c5
{[%clk 0:01:53]} 21. Qb3 {[%clk 0:00:25]} 21... Qd4+ {[%clk 0:01:49.2]} 22. Ke2
{[%clk 0:00:22.5]} 22... Bb7 {[%clk 0:01:46.7]} 23. fxe6 {[%clk 0:00:20.9]}
23... Qxg4+ {[%clk 0:01:46.5]} 24. Nf3 {[%clk 0:00:20.4]} 24... Qxg2+ {[%clk
0:01:45.7]} 25. Kd1 {[%clk 0:00:18.6]} 25... O-O-O+ {[%clk 0:01:39.4]} 26. Kc1
{[%clk 0:00:15.5]} 26... Qxh1+ {[%clk 0:01:38.2]} 27. Kb2 {[%clk 0:00:16]} 27...
Qxf3 {[%clk 0:01:36.6]} 28. e7 {[%clk 0:00:13]} 28... Rd2+ {[%clk 0:01:34.5]}
29. Ka1 {[%clk 0:00:12.5]} 29... Qf6+ {[%clk 0:01:34.4]} 30. Rb2 {[%clk
0:00:12.6]} 30... Qxb2+ {[%clk 0:01:24.4]} 31. Qxb2 {[%clk 0:00:12.4]} 31...
Rxb2 {[%clk 0:01:24.2]} 32. Kxb2 {[%clk 0:00:13.3]} 32... Re8 {[%clk 0:01:24]}
0-1

[Event "*** SCC Grand Prix: Titled Tuesday Blitz"]
[Site "Chess.com"]
[Date "2020.09.29"]
[Round "6"]
[White "grunbergmihai"]
[Black "NotFischer"]
[Result "0-1"]
[WhiteElo "2454"]
[BlackElo "2304"]
[TimeControl "180+1"]
[EndTime "11:04:06 PDT"]
[Termination "NotFischer won by resignation"]

1. Nf3 {[%clk 0:02:51.3]} 1... d5 {[%clk 0:02:59.6]} 2. c4 {[%clk 0:02:50.6]}
2... e6 {[%clk 0:02:58]} 3. g3 {[%clk 0:02:51.5]} 3... Nf6 {[%clk 0:02:57.7]} 4.
Bg2 {[%clk 0:02:52.4]} 4... Be7 {[%clk 0:02:56.7]} 5. O-O {[%clk 0:02:53.3]}
5... O-O {[%clk 0:02:57]} 6. d4 {[%clk 0:02:54.2]} 6... c6 {[%clk 0:02:57.4]} 7.
Qc2 {[%clk 0:02:55.1]} 7... Nbd7 {[%clk 0:02:57.8]} 8. Nc3 {[%clk 0:02:53.8]}
8... b6 {[%clk 0:02:57.5]} 9. e4 {[%clk 0:02:53.6]} 9... dxe4 {[%clk 0:02:58.4]}
10. Nxe4 {[%clk 0:02:53.8]} 10... Nxe4 {[%clk 0:02:59.3]} 11. Qxe4 {[%clk
0:02:54.1]} 11... Bb7 {[%clk 0:03:00.2]} 12. Rd1 {[%clk 0:02:53.6]} 12... Nf6
{[%clk 0:03:00.2]} 13. Qe2 {[%clk 0:02:52.7]} 13... Re8 {[%clk 0:03:00.2]} 14.
Ne5 {[%clk 0:02:52.4]} 14... Qc8 {[%clk 0:02:59.2]} 15. Bf4 {[%clk 0:02:50.6]}
15... c5 {[%clk 0:02:59.2]} 16. Bxb7 {[%clk 0:02:45.2]} 16... Qxb7 {[%clk
0:03:00.1]} 17. Rac1 {[%clk 0:02:43.1]} 17... cxd4 {[%clk 0:02:58.4]} 18. Rxd4
{[%clk 0:02:42.8]} 18... Bc5 {[%clk 0:02:57.4]} 19. Rd3 {[%clk 0:02:41.8]} 19...
Rad8 {[%clk 0:02:56.8]} 20. h4 {[%clk 0:02:40.8]} 20... h6 {[%clk 0:02:54.2]}
21. b3 {[%clk 0:02:40.2]} 21... Rxd3 {[%clk 0:02:51.8]} 22. Qxd3 {[%clk
0:02:39.7]} 22... Ba3 {[%clk 0:02:52.1]} 23. Rd1 {[%clk 0:02:39.1]} 23... Be7
{[%clk 0:02:47.3]} 24. Qf3 {[%clk 0:02:32.6]} 24... Qxf3 {[%clk 0:02:27.6]} 25.
Nxf3 {[%clk 0:02:33.2]} 25... Rd8 {[%clk 0:02:21]} 26. Rxd8+ {[%clk 0:02:31.1]}
26... Bxd8 {[%clk 0:02:21.9]} 27. Ne5 {[%clk 0:02:29.7]} 27... Bc7 {[%clk
0:02:04.1]} 28. Nc6 {[%clk 0:02:27.2]} 28... Bxf4 {[%clk 0:02:02.3]} 29. gxf4
{[%clk 0:02:28.1]} 29... a5 {[%clk 0:01:55.4]} 30. Kg2 {[%clk 0:02:25.5]} 30...
Ne4 {[%clk 0:01:53.4]} 31. Kf3 {[%clk 0:02:23.8]} 31... Nc3 {[%clk 0:01:53.8]}
32. Ne7+ {[%clk 0:02:14.6]} 32... Kf8 {[%clk 0:01:53.7]} 33. Nc8 {[%clk
0:02:15.5]} 33... Nxa2 {[%clk 0:01:49.9]} 34. Nxb6 {[%clk 0:02:15]} 34... Ke7
{[%clk 0:01:45]} 35. c5 {[%clk 0:02:09.4]} 35... Nc1 {[%clk 0:01:44]} 36. c6
{[%clk 0:02:08.1]} 36... Kd8 {[%clk 0:01:34.3]} 37. Nc4 {[%clk 0:02:01.6]} 37...
Nxb3 {[%clk 0:01:33.2]} 38. Ke4 {[%clk 0:01:57.6]} 38... Kc7 {[%clk 0:01:26.2]}
39. Kd3 {[%clk 0:01:52.8]} 39... Kxc6 {[%clk 0:01:21.6]} 40. Kc3 {[%clk
0:01:52.3]} 40... a4 {[%clk 0:01:21.5]} 41. Ne5+ {[%clk 0:01:49.8]} 41... Kd5
{[%clk 0:01:22]} 42. Nxf7 {[%clk 0:01:49.7]} 42... Ke4 {[%clk 0:01:22.5]} 43.
Nd8 {[%clk 0:01:49]} 43... Nc5 {[%clk 0:01:20.6]} 44. Kb4 {[%clk 0:01:46.3]}
44... Nd3+ {[%clk 0:01:18]} 45. Kxa4 {[%clk 0:01:45.6]} 45... Nxf4 {[%clk
0:01:18.9]} 46. Kb4 {[%clk 0:01:44.3]} 46... Kf3 {[%clk 0:01:19.3]} 47. Kc5
{[%clk 0:01:43.6]} 47... e5 {[%clk 0:01:19.7]} 48. Kd6 {[%clk 0:01:39.8]} 48...
e4 {[%clk 0:01:19.3]} 49. Ke7 {[%clk 0:01:34.8]} 49... Kxf2 {[%clk 0:01:19.4]}
50. Nc6 {[%clk 0:01:31.8]} 50... e3 {[%clk 0:01:19.8]} 51. Nd4 {[%clk
0:01:30.1]} 51... g5 {[%clk 0:01:17.9]} 52. hxg5 {[%clk 0:01:27]} 52... hxg5
{[%clk 0:01:18.8]} 53. Kf6 {[%clk 0:01:27.9]} 53... g4 {[%clk 0:01:18.4]} 54.
Kf5 {[%clk 0:01:28.1]} 54... g3 {[%clk 0:01:18.3]} 55. Kxf4 {[%clk 0:01:28]}
55... g2 {[%clk 0:01:18.7]} 56. Nf3 {[%clk 0:01:28.1]} 56... e2 {[%clk
0:01:18.2]} 0-1

[Event "*** SCC Grand Prix: Titled Tuesday Blitz"]
[Site "Chess.com"]
[Date "2020.09.29"]
[Round "6"]
[White "Fandorine"]
[Black "Hikaru"]
[Result "1-0"]
[WhiteElo "2931"]
[BlackElo "3235"]
[TimeControl "180+1"]
[EndTime "11:04:07 PDT"]
[Termination "Fandorine won by resignation"]

1. e4 {[%clk 0:03:00.9]} 1... e5 {[%clk 0:02:57.1]} 2. Nf3 {[%clk 0:03:01]} 2...
Nc6 {[%clk 0:02:57]} 3. Bc4 {[%clk 0:03:01.5]} 3... Bc5 {[%clk 0:02:56.6]} 4. d3
{[%clk 0:03:01.7]} 4... Nf6 {[%clk 0:02:55.5]} 5. Nbd2 {[%clk 0:03:01.9]} 5...
a5 {[%clk 0:02:55.2]} 6. c3 {[%clk 0:03:00.2]} 6... d6 {[%clk 0:02:55.6]} 7. O-O
{[%clk 0:03:00.2]} 7... O-O {[%clk 0:02:55]} 8. Re1 {[%clk 0:03:00.2]} 8... h6
{[%clk 0:02:54.8]} 9. a4 {[%clk 0:02:58.1]} 9... Bb6 {[%clk 0:02:54.4]} 10. Nf1
{[%clk 0:02:55.5]} 10... Ne7 {[%clk 0:02:50.6]} 11. Ng3 {[%clk 0:02:55.7]} 11...
Ng6 {[%clk 0:02:47.8]} 12. h3 {[%clk 0:02:55.2]} 12... c6 {[%clk 0:02:48.2]} 13.
Bb3 {[%clk 0:02:51.4]} 13... d5 {[%clk 0:02:47.9]} 14. exd5 {[%clk 0:02:48.5]}
14... Nxd5 {[%clk 0:02:47.9]} 15. Nh5 {[%clk 0:02:49.1]} 15... Re8 {[%clk
0:02:43.2]} 16. Qd2 {[%clk 0:02:48.4]} 16... Bf5 {[%clk 0:02:03.3]} 17. Nxg7
{[%clk 0:02:14.6]} 17... Kxg7 {[%clk 0:02:04.2]} 18. Qxh6+ {[%clk 0:02:14.8]}
18... Kg8 {[%clk 0:02:04.9]} 19. Bg5 {[%clk 0:02:05.3]} 19... Qd6 {[%clk
0:01:53.6]} 20. Nh4 {[%clk 0:02:01.1]} 20... Qe6 {[%clk 0:01:42.5]} 21. c4
{[%clk 0:01:36.8]} 21... Bxf2+ {[%clk 0:00:23.2]} 22. Kxf2 {[%clk 0:01:35.6]}
22... Ndf4 {[%clk 0:00:23.6]} 23. Kg1 {[%clk 0:01:09.9]} 23... Nxd3 {[%clk
0:00:18.2]} 24. c5 {[%clk 0:01:05.8]} 1-0

[Event "*** SCC Grand Prix: Titled Tuesday Blitz"]
[Site "Chess.com"]
[Date "2020.09.29"]
[Round "6"]
[White "PavelChernomordik"]
[Black "Nara_Kh"]
[Result "1-0"]
[WhiteElo "2315"]
[BlackElo "2388"]
[TimeControl "180+1"]
[EndTime "11:04:19 PDT"]
[Termination "PavelChernomordik won by checkmate"]

1. e4 {[%clk 0:03:00.9]} 1... c5 {[%clk 0:02:59.5]} 2. Nc3 {[%clk 0:02:58.6]}
2... d6 {[%clk 0:02:58.5]} 3. f4 {[%clk 0:02:57.4]} 3... g6 {[%clk 0:02:57.9]}
4. Nf3 {[%clk 0:02:57.5]} 4... Bg7 {[%clk 0:02:57.7]} 5. Bb5+ {[%clk 0:02:57.9]}
5... Bd7 {[%clk 0:02:56.3]} 6. Bxd7+ {[%clk 0:02:56.6]} 6... Qxd7 {[%clk
0:02:55.5]} 7. O-O {[%clk 0:02:56.3]} 7... Nc6 {[%clk 0:02:55.5]} 8. d3 {[%clk
0:02:54.9]} 8... e6 {[%clk 0:02:55.7]} 9. f5 {[%clk 0:02:50.2]} 9... exf5 {[%clk
0:02:49.4]} 10. exf5 {[%clk 0:02:47.7]} 10... O-O-O {[%clk 0:02:49.5]} 11. fxg6
{[%clk 0:02:35]} 11... hxg6 {[%clk 0:02:47.7]} 12. Bf4 {[%clk 0:02:30.1]} 12...
f5 {[%clk 0:02:42.4]} 13. Nb5 {[%clk 0:02:14.7]} 13... Bf8 {[%clk 0:02:30.6]}
14. c4 {[%clk 0:02:03.3]} 14... Nf6 {[%clk 0:02:25.5]} 15. Qa4 {[%clk
0:01:58.7]} 15... Kb8 {[%clk 0:02:23.7]} 16. b4 {[%clk 0:01:50.6]} 16... Nh5
{[%clk 0:02:20.6]} 17. Bg5 {[%clk 0:01:43.6]} 17... Be7 {[%clk 0:02:19.6]} 18.
Bxe7 {[%clk 0:01:40.2]} 18... Qxe7 {[%clk 0:02:16.7]} 19. Rfe1 {[%clk
0:01:40.4]} 19... Qf6 {[%clk 0:01:45.7]} 20. bxc5 {[%clk 0:01:37.1]} 20... dxc5
{[%clk 0:01:44.2]} 21. Ne5 {[%clk 0:01:32.8]} 21... a6 {[%clk 0:01:29.8]} 22.
Nxc6+ {[%clk 0:01:20.9]} 22... Qxc6 {[%clk 0:01:29.9]} 23. Nc3 {[%clk
0:01:19.4]} 23... Qxa4 {[%clk 0:01:30]} 24. Nxa4 {[%clk 0:01:18.6]} 24... Rxd3
{[%clk 0:01:30.9]} 25. Nxc5 {[%clk 0:01:16.6]} 25... Rd2 {[%clk 0:01:31.2]} 26.
Rab1 {[%clk 0:01:10.7]} 26... Nf4 {[%clk 0:01:26.7]} 27. Rxb7+ {[%clk
0:01:06.1]} 27... Kc8 {[%clk 0:01:18.1]} 28. Ree7 {[%clk 0:01:01.7]} 28... Rxg2+
{[%clk 0:01:04]} 29. Kf1 {[%clk 0:01:00.4]} 29... Rgxh2 {[%clk 0:00:34.3]} 30.
Rbc7+ {[%clk 0:00:52.5]} 30... Kd8 {[%clk 0:00:31.2]} 31. Nb7# {[%clk 0:00:51]}
1-0

[Event "*** SCC Grand Prix: Titled Tuesday Blitz"]
[Site "Chess.com"]
[Date "2020.09.29"]
[Round "6"]
[White "Ginger_GM"]
[Black "Rakesh"]
[Result "1-0"]
[WhiteElo "2693"]
[BlackElo "2429"]
[TimeControl "180+1"]
[EndTime "11:04:20 PDT"]
[Termination "Ginger_GM won by resignation"]

1. c4 {[%clk 0:03:00.9]} 1... e5 {[%clk 0:02:58.3]} 2. Nc3 {[%clk 0:03:00.5]}
2... Nc6 {[%clk 0:02:58.7]} 3. g3 {[%clk 0:03:00.4]} 3... Nf6 {[%clk 0:02:59.6]}
4. Bg2 {[%clk 0:03:00.2]} 4... d6 {[%clk 0:02:59.8]} 5. e4 {[%clk 0:02:56.8]}
5... Be6 {[%clk 0:02:59.8]} 6. d3 {[%clk 0:02:56.1]} 6... Qd7 {[%clk 0:03:00.3]}
7. Nd5 {[%clk 0:02:54.9]} 7... Be7 {[%clk 0:02:57.5]} 8. h3 {[%clk 0:02:45.3]}
8... O-O {[%clk 0:02:56.6]} 9. Ne2 {[%clk 0:02:42.1]} 9... Ne8 {[%clk
0:02:54.1]} 10. g4 {[%clk 0:02:39.3]} 10... Nd8 {[%clk 0:02:48.3]} 11. O-O
{[%clk 0:02:34.9]} 11... c6 {[%clk 0:02:48.5]} 12. Nxe7+ {[%clk 0:02:34]} 12...
Qxe7 {[%clk 0:02:49.4]} 13. f4 {[%clk 0:02:34.2]} 13... exf4 {[%clk 0:02:49.3]}
14. Nxf4 {[%clk 0:02:34.2]} 14... Nf6 {[%clk 0:02:46.1]} 15. b3 {[%clk
0:02:28.5]} 15... Nd7 {[%clk 0:02:43.4]} 16. Bb2 {[%clk 0:02:27.7]} 16... a5
{[%clk 0:02:37.8]} 17. d4 {[%clk 0:02:21.1]} 17... f6 {[%clk 0:02:35.8]} 18. Qd3
{[%clk 0:02:01.9]} 18... a4 {[%clk 0:02:33.3]} 19. b4 {[%clk 0:02:00]} 19... a3
{[%clk 0:02:32.1]} 20. Bc3 {[%clk 0:01:57.1]} 20... b5 {[%clk 0:02:31.3]} 21.
cxb5 {[%clk 0:01:56]} 21... cxb5 {[%clk 0:02:32.2]} 22. Nxe6 {[%clk 0:01:52]}
22... Nxe6 {[%clk 0:02:31.1]} 23. Qxb5 {[%clk 0:01:46.6]} 23... Ng5 {[%clk
0:02:28.4]} 24. e5 {[%clk 0:01:41.2]} 24... dxe5 {[%clk 0:02:22.5]} 25. Bxa8
{[%clk 0:01:39]} 25... exd4 {[%clk 0:02:08.8]} 26. Bxd4 {[%clk 0:01:21.5]} 26...
Nxh3+ {[%clk 0:02:03.5]} 27. Kh2 {[%clk 0:01:19.4]} 27... Qd6+ {[%clk
0:01:59.3]} 28. Kxh3 {[%clk 0:01:19.4]} 28... Rxa8 {[%clk 0:01:59.2]} 29. Rad1
{[%clk 0:01:13.5]} 29... h5 {[%clk 0:01:58.6]} 30. Qxh5 {[%clk 0:01:11.9]} 30...
Rc8 {[%clk 0:01:52.7]} 31. Bc5 {[%clk 0:01:09]} 31... Qc6 {[%clk 0:01:31]} 32.
Qd5+ {[%clk 0:01:08.3]} 32... Qxd5 {[%clk 0:01:31.7]} 33. Rxd5 {[%clk
0:01:08.1]} 33... Ne5 {[%clk 0:01:32.6]} 34. Rfd1 {[%clk 0:01:03.9]} 34... Kf7
{[%clk 0:01:32.6]} 35. Kg3 {[%clk 0:01:01.7]} 35... Nc4 {[%clk 0:01:29.8]} 36.
Rd8 {[%clk 0:00:50.4]} 36... Rc6 {[%clk 0:01:28]} 37. R1d5 {[%clk 0:00:49.6]}
37... Re6 {[%clk 0:01:18.2]} 38. b5 {[%clk 0:00:46.8]} 38... Re2 {[%clk
0:01:18.6]} 39. b6 {[%clk 0:00:46.3]} 39... Nxb6 {[%clk 0:01:10.8]} 40. Bxb6
{[%clk 0:00:45.7]} 40... Rxa2 {[%clk 0:01:11.7]} 41. Rd2 {[%clk 0:00:45.2]}
41... Ra1 {[%clk 0:01:03.2]} 42. Rd1 {[%clk 0:00:45]} 42... Ra2 {[%clk 0:01:03]}
43. R8d2 {[%clk 0:00:45.1]} 1-0

[Event "*** SCC Grand Prix: Titled Tuesday Blitz"]
[Site "Chess.com"]
[Date "2020.09.29"]
[Round "6"]
[White "TC2304"]
[Black "sjam6687"]
[Result "0-1"]
[WhiteElo "2310"]
[BlackElo "2525"]
[TimeControl "180+1"]
[EndTime "11:04:20 PDT"]
[Termination "sjam6687 won by checkmate"]

1. d4 {[%clk 0:03:00.9]} 1... Nf6 {[%clk 0:02:59.3]} 2. Bg5 {[%clk 0:03:01.5]}
2... e6 {[%clk 0:02:54.9]} 3. e4 {[%clk 0:03:01.5]} 3... h6 {[%clk 0:02:54.9]}
4. Bxf6 {[%clk 0:03:01.5]} 4... Qxf6 {[%clk 0:02:55.6]} 5. c3 {[%clk 0:03:02.1]}
5... c5 {[%clk 0:02:54.7]} 6. Nf3 {[%clk 0:03:02.1]} 6... cxd4 {[%clk
0:02:54.9]} 7. cxd4 {[%clk 0:03:03]} 7... Bb4+ {[%clk 0:02:55.4]} 8. Nc3 {[%clk
0:03:03.2]} 8... O-O {[%clk 0:02:56]} 9. Bd3 {[%clk 0:03:02.1]} 9... d6 {[%clk
0:02:55]} 10. O-O {[%clk 0:03:02.6]} 10... Bxc3 {[%clk 0:02:55.2]} 11. bxc3
{[%clk 0:03:02.3]} 11... e5 {[%clk 0:02:56.1]} 12. Rb1 {[%clk 0:02:58.6]} 12...
b6 {[%clk 0:02:34.8]} 13. a4 {[%clk 0:02:36.6]} 13... Nc6 {[%clk 0:02:30.2]} 14.
Bb5 {[%clk 0:02:33.9]} 14... Bb7 {[%clk 0:02:22.6]} 15. d5 {[%clk 0:02:31.9]}
15... Na5 {[%clk 0:02:16.2]} 16. Nd2 {[%clk 0:02:19.7]} 16... Rac8 {[%clk
0:02:14.2]} 17. Rc1 {[%clk 0:02:13.4]} 17... Rc7 {[%clk 0:01:44.3]} 18. Nb3
{[%clk 0:02:00.5]} 18... Nc4 {[%clk 0:01:25.1]} 19. a5 {[%clk 0:01:55.5]} 19...
Rfc8 {[%clk 0:01:11]} 20. Qd3 {[%clk 0:01:31.8]} 20... Nxa5 {[%clk 0:01:03.2]}
21. Nxa5 {[%clk 0:01:29.9]} 21... bxa5 {[%clk 0:01:04.1]} 22. c4 {[%clk
0:01:29.5]} 22... Qd8 {[%clk 0:00:55.2]} 23. Rc3 {[%clk 0:01:28.3]} 23... Rc5
{[%clk 0:00:52.2]} 24. Ra1 {[%clk 0:01:26.4]} 24... Qc7 {[%clk 0:00:48.2]} 25.
Raa3 {[%clk 0:01:19.9]} 25... a6 {[%clk 0:00:43.9]} 26. Bc6 {[%clk 0:01:12.4]}
26... Bxc6 {[%clk 0:00:41.3]} 27. dxc6 {[%clk 0:01:13.3]} 27... Qxc6 {[%clk
0:00:41.1]} 28. f3 {[%clk 0:01:08.4]} 28... Rxc4 {[%clk 0:00:35.1]} 29. Rxc4
{[%clk 0:01:06.1]} 29... Qxc4 {[%clk 0:00:35.5]} 30. Qxd6 {[%clk 0:00:59.3]}
30... Qc1+ {[%clk 0:00:31.9]} 31. Kf2 {[%clk 0:00:59.4]} 31... Rc2+ {[%clk
0:00:32.2]} 32. Kg3 {[%clk 0:00:58.8]} 32... Qg5+ {[%clk 0:00:32.4]} 33. Kh3
{[%clk 0:00:58]} 33... Qxg2+ {[%clk 0:00:32.4]} 34. Kh4 {[%clk 0:00:58.2]} 34...
Qxh2+ {[%clk 0:00:32.3]} 35. Kg4 {[%clk 0:00:58.8]} 35... Qf4+ {[%clk
0:00:32.8]} 36. Kh3 {[%clk 0:00:58.9]} 36... Rh2# {[%clk 0:00:33.7]} 0-1

[Event "*** SCC Grand Prix: Titled Tuesday Blitz"]
[Site "Chess.com"]
[Date "2020.09.29"]
[Round "6"]
[White "elcandado"]
[Black "MashaFromRussia"]
[Result "0-1"]
[WhiteElo "2564"]
[BlackElo "2422"]
[TimeControl "180+1"]
[EndTime "11:04:23 PDT"]
[Termination "MashaFromRussia won by resignation"]

1. d4 {[%clk 0:03:00.9]} 1... Nf6 {[%clk 0:02:57]} 2. Bf4 {[%clk 0:03:00.5]}
2... g6 {[%clk 0:02:55.9]} 3. e3 {[%clk 0:02:59.7]} 3... Bg7 {[%clk 0:02:56.5]}
4. Be2 {[%clk 0:02:59]} 4... d6 {[%clk 0:02:57.1]} 5. Nf3 {[%clk 0:02:56.1]}
5... Nh5 {[%clk 0:02:57.2]} 6. Bg5 {[%clk 0:02:55.6]} 6... h6 {[%clk 0:02:57.5]}
7. Bh4 {[%clk 0:02:55.8]} 7... g5 {[%clk 0:02:57.8]} 8. Nfd2 {[%clk 0:02:55.7]}
8... Nf6 {[%clk 0:02:55.3]} 9. Bg3 {[%clk 0:02:54.7]} 9... c5 {[%clk 0:02:55.3]}
10. c3 {[%clk 0:02:52.1]} 10... Nc6 {[%clk 0:02:55.2]} 11. a4 {[%clk 0:02:46.8]}
11... Bf5 {[%clk 0:02:54.5]} 12. Na3 {[%clk 0:02:46.3]} 12... Rc8 {[%clk
0:02:48.8]} 13. Qb3 {[%clk 0:02:42.5]} 13... b6 {[%clk 0:02:44.3]} 14. h3 {[%clk
0:02:14.9]} 14... O-O {[%clk 0:02:42.6]} 15. O-O {[%clk 0:02:12.2]} 15... cxd4
{[%clk 0:02:42]} 16. exd4 {[%clk 0:02:10.1]} 16... e5 {[%clk 0:02:42.3]} 17.
dxe5 {[%clk 0:01:23.1]} 17... dxe5 {[%clk 0:02:43.2]} 18. Rad1 {[%clk
0:01:17.1]} 18... Qe7 {[%clk 0:02:38.4]} 19. Ba6 {[%clk 0:01:11.9]} 19... Rcd8
{[%clk 0:02:36]} 20. Rfe1 {[%clk 0:01:04.5]} 20... Nh5 {[%clk 0:02:35.3]} 21.
Bh2 {[%clk 0:01:01.4]} 21... Nf4 {[%clk 0:02:35.8]} 22. Bxf4 {[%clk 0:01:00.4]}
22... gxf4 {[%clk 0:02:35.4]} 23. Nf3 {[%clk 0:00:38]} 23... Rxd1 {[%clk
0:02:28.6]} 24. Qxd1 {[%clk 0:00:34.3]} 24... Rd8 {[%clk 0:02:27.9]} 25. Qe2
{[%clk 0:00:33.4]} 25... e4 {[%clk 0:02:22.5]} 26. Nd2 {[%clk 0:00:27.2]} 26...
f3 {[%clk 0:01:50.2]} 27. Nxf3 {[%clk 0:00:20.6]} 27... exf3 {[%clk 0:01:35]}
28. Qxe7 {[%clk 0:00:21.5]} 28... Nxe7 {[%clk 0:01:35.4]} 29. Rxe7 {[%clk
0:00:21.6]} 29... Rd1+ {[%clk 0:01:35.1]} 30. Kh2 {[%clk 0:00:21.7]} 30... Bf8
{[%clk 0:01:35.3]} 31. Re8 {[%clk 0:00:13.7]} 31... Bd7 {[%clk 0:01:33.2]} 32.
Rd8 {[%clk 0:00:11.5]} 32... fxg2 {[%clk 0:01:26.2]} 33. Kxg2 {[%clk 0:00:08.2]}
33... Bc6+ {[%clk 0:01:26.6]} 34. Kg3 {[%clk 0:00:08.4]} 34... Rxd8 {[%clk
0:01:27.1]} 35. Bb5 {[%clk 0:00:08.2]} 35... Bxb5 {[%clk 0:01:26.8]} 36. Nxb5
{[%clk 0:00:07.9]} 36... a6 {[%clk 0:01:27.4]} 0-1

[Event "*** SCC Grand Prix: Titled Tuesday Blitz"]
[Site "Chess.com"]
[Date "2020.09.29"]
[Round "6"]
[White "jacky72"]
[Black "MF1966Idrisov"]
[Result "1-0"]
[WhiteElo "2590"]
[BlackElo "2353"]
[TimeControl "180+1"]
[EndTime "11:04:25 PDT"]
[Termination "jacky72 won by resignation"]

1. Nf3 {[%clk 0:03:00.9]} 1... d6 {[%clk 0:02:59.3]} 2. d4 {[%clk 0:03:00.3]}
2... f5 {[%clk 0:02:58.5]} 3. g3 {[%clk 0:02:57.1]} 3... Nf6 {[%clk 0:02:58.4]}
4. Bg2 {[%clk 0:02:58]} 4... e6 {[%clk 0:02:58.5]} 5. O-O {[%clk 0:02:58.9]}
5... Be7 {[%clk 0:02:58.8]} 6. b3 {[%clk 0:02:59.8]} 6... O-O {[%clk 0:02:58.7]}
7. Bb2 {[%clk 0:03:00.7]} 7... Ne4 {[%clk 0:02:59]} 8. c4 {[%clk 0:03:01.6]}
8... Bf6 {[%clk 0:02:58.9]} 9. Ne1 {[%clk 0:03:01.6]} 9... Nc6 {[%clk
0:02:57.5]} 10. Nc2 {[%clk 0:02:55.1]} 10... e5 {[%clk 0:02:55.7]} 11. f3 {[%clk
0:02:53.8]} 11... Ng5 {[%clk 0:02:54.5]} 12. d5 {[%clk 0:02:54]} 12... Ne7
{[%clk 0:02:51.2]} 13. e4 {[%clk 0:02:54.5]} 13... fxe4 {[%clk 0:02:46.8]} 14.
fxe4 {[%clk 0:02:55.4]} 14... Bh3 {[%clk 0:02:45.3]} 15. Bxh3 {[%clk 0:02:51.3]}
15... Nxh3+ {[%clk 0:02:44.2]} 16. Kg2 {[%clk 0:02:52.2]} 16... Qd7 {[%clk
0:02:33]} 17. Nc3 {[%clk 0:02:45.5]} 17... g6 {[%clk 0:02:16.2]} 18. Bc1 {[%clk
0:02:42]} 18... Bg5 {[%clk 0:02:09.5]} 19. Ne3 {[%clk 0:02:31.1]} 19... h5
{[%clk 0:02:03.4]} 20. g4 {[%clk 0:02:06.8]} 20... Nf4+ {[%clk 0:01:44.5]} 21.
Kh1 {[%clk 0:02:05.1]} 21... h4 {[%clk 0:01:44.6]} 22. Bd2 {[%clk 0:01:58.6]}
22... h3 {[%clk 0:01:41.7]} 23. Qf3 {[%clk 0:01:54.2]} 23... Nfxd5 {[%clk
0:01:30.4]} 24. Qxh3 {[%clk 0:01:45.6]} 24... Nxc3 {[%clk 0:01:26.3]} 25. Bxc3
{[%clk 0:01:43.1]} 25... Bf4 {[%clk 0:01:14.2]} 26. Ng2 {[%clk 0:01:35.9]} 26...
Bg5 {[%clk 0:00:51.7]} 27. Qg3 {[%clk 0:01:30.1]} 27... Qc6 {[%clk 0:00:40.1]}
28. h4 {[%clk 0:01:28]} 28... Bh6 {[%clk 0:00:38.5]} 29. g5 {[%clk 0:01:27.1]}
29... Bg7 {[%clk 0:00:36.9]} 30. Qg4 {[%clk 0:01:27]} 30... Kh7 {[%clk
0:00:29.1]} 31. h5 {[%clk 0:01:25.6]} 31... Rf4 {[%clk 0:00:19.8]} 32. hxg6+
{[%clk 0:01:22.8]} 32... Nxg6 {[%clk 0:00:17.6]} 33. Qh5+ {[%clk 0:01:21.9]}
33... Kg8 {[%clk 0:00:15.3]} 34. Qxg6 {[%clk 0:01:18.3]} 34... Raf8 {[%clk
0:00:13.4]} 35. Rxf4 {[%clk 0:01:16.5]} 35... Rxf4 {[%clk 0:00:11.9]} 36. Nxf4
{[%clk 0:01:16.7]} 1-0